[Event "IV Pullman Rapid 2022"]
[Site "Riga, Latvia"]
[Date "2022.02.19"]
[Round "5.2"]
[White "Mustaps, Matiss"]
[Black "Smorodinskis, Igors"]
[Result "1-0"]
[TimeControl "600+5"]
[WhiteTitle "FM"]
[WhiteElo "2393"]
[BlackElo "2121"]

1. e4 {[%clk 00:10:08]} {[%emt 00:00:01]} Nf6 {[%clk 00:10:09]} {[%emt
00:00:02]} 2. e5 {[%clk 00:10:11]} {[%emt 00:00:02]} Nd5 {[%clk 00:10:13]} 3.
d4 {[%clk 00:10:16]} d6 {[%clk 00:10:18]} {[%emt 00:00:02]} 4. Bc4 {[%clk
00:10:20]} Nb6 {[%clk 00:10:21]} {[%emt 00:00:01]} 5. Bb3 {[%clk 00:10:25]}
dxe5 {[%clk 00:10:25]} {[%emt 00:00:02]} 6. Qh5 {[%clk 00:10:29]} e6 {[%clk
00:10:29]} {[%emt 00:00:02]} 7. dxe5 {[%clk 00:10:33]} {[%emt 00:00:01]} a5
{[%clk 00:10:34]} 8. a4 {[%clk 00:10:28]} {[%emt 00:00:11]} Na6 {[%clk
00:10:30]} {[%emt 00:00:09]} 9. Nf3 {[%clk 00:10:15]} {[%emt 00:00:17]} Nc5
{[%clk 00:10:23]} {[%emt 00:00:11]} 10. O-O {[%clk 00:10:06]} {[%emt 00:00:15]}
Nxb3 {[%clk 00:10:16]} {[%emt 00:00:12]} 11. cxb3 {[%clk 00:10:11]} Qd3 {[%clk
00:10:03]} {[%emt 00:00:19]} 12. Nc3 {[%clk 00:09:42]} {[%emt 00:00:34]} Bd7
{[%clk 00:10:01]} {[%emt 00:00:06]} 13. Be3 {[%clk 00:09:34]} {[%emt 00:00:13]}
Qg6 {[%clk 00:08:13]} {[%emt 00:01:53]} 14. Qh3 {[%clk 00:09:34]} {[%emt
00:00:05]} Be7 {[%clk 00:07:50]} {[%emt 00:00:29]} 15. Rfd1 {[%clk 00:08:58]}
{[%emt 00:00:40]} Nd5 {[%clk 00:07:21]} {[%emt 00:00:34]} 16. Rac1 {[%clk
00:06:18]} {[%emt 00:02:45]} c6 {[%clk 00:07:11]} {[%emt 00:00:16]} 17. Rd4
{[%clk 00:05:31]} {[%emt 00:00:52]} h5 {[%clk 00:07:08]} {[%emt 00:00:07]} 18.
Ne4 {[%clk 00:05:11]} {[%emt 00:00:26]} Qf5 {[%clk 00:05:40]} {[%emt 00:01:34]}
19. Qg3 {[%clk 00:04:14]} {[%emt 00:01:02]} Qg6 {[%clk 00:05:23]} {[%emt
00:00:21]} 20. Qxg6 {[%clk 00:02:49]} {[%emt 00:01:30]} fxg6 {[%clk 00:05:27]}
{[%emt 00:00:01]} 21. Nd6+ {[%clk 00:02:53]} Bxd6 {[%clk 00:05:12]} {[%emt
00:00:20]} 22. exd6 {[%clk 00:02:57]} {[%emt 00:00:01]} O-O-O {[%clk 00:04:32]}
{[%emt 00:00:45]} 23. Bg5 {[%clk 00:03:02]} Rdf8 {[%clk 00:04:26]} {[%emt
00:00:11]} 24. Ne5 {[%clk 00:03:06]} {[%emt 00:00:01]} Rf5 {[%clk 00:04:17]}
{[%emt 00:00:13]} 25. f4 {[%clk 00:03:10]} {[%emt 00:00:02]} Be8 {[%clk
00:04:05]} {[%emt 00:00:17]} 26. g3 {[%clk 00:02:47]} {[%emt 00:00:27]} Rhf8
{[%clk 00:04:07]} {[%emt 00:00:03]} 27. h3 {[%clk 00:02:46]} {[%emt 00:00:06]}
Nb6 {[%clk 00:03:42]} {[%emt 00:00:30]} 28. g4 {[%clk 00:02:10]} {[%emt
00:00:41]} Rxe5 {[%clk 00:03:32]} {[%emt 00:00:15]} 29. fxe5 {[%clk 00:02:14]}
Nd7 {[%clk 00:03:34]} {[%emt 00:00:03]} 30. Rf4 {[%clk 00:02:06]} {[%emt
00:00:13]} Rxf4 {[%clk 00:03:23]} {[%emt 00:00:16]} 31. Bxf4 {[%clk 00:02:10]}
{[%emt 00:00:01]} g5 {[%clk 00:03:27]} 32. Bh2 {[%clk 00:02:09]} {[%emt
00:00:06]} Bg6 {[%clk 00:03:20]} {[%emt 00:00:12]} 33. Kf2 {[%clk 00:02:06]}
{[%emt 00:00:07]} c5 {[%clk 00:03:21]} {[%emt 00:00:05]} 34. Ke3 {[%clk
00:01:59]} {[%emt 00:00:11]} b6 {[%clk 00:03:25]} {[%emt 00:00:01]} 35. Kd2
{[%clk 00:01:57]} {[%emt 00:00:07]} Kb7 {[%clk 00:03:19]} {[%emt 00:00:11]} 36.
Kc3 {[%clk 00:01:47]} {[%emt 00:00:15]} hxg4 {[%clk 00:03:11]} {[%emt
00:00:13]} 37. hxg4 {[%clk 00:01:51]} Kc6 {[%clk 00:03:03]} {[%emt 00:00:13]}
38. Rd1 {[%clk 00:01:55]} {[%emt 00:00:01]} Be4 {[%clk 00:03:03]} {[%emt
00:00:04]} 39. Rf1 {[%clk 00:01:45]} {[%emt 00:00:14]} Bg2 {[%clk 00:02:33]}
{[%emt 00:00:36]} 40. Rf7 {[%clk 00:01:45]} {[%emt 00:00:05]} Bh3 {[%clk
00:02:30]} {[%emt 00:00:08]} 41. Rxg7 {[%clk 00:01:48]} {[%emt 00:00:03]} Bxg4
{[%clk 00:02:34]} 42. Rxg5 {[%clk 00:01:51]} Bf3 {[%clk 00:02:35]} {[%emt
00:00:04]} 43. Rg8 {[%clk 00:01:54]} {[%emt 00:00:02]} Kb7 {[%clk 00:02:32]}
{[%emt 00:00:08]} 44. Rd8 {[%clk 00:01:54]} {[%emt 00:00:05]} Bc6 {[%clk
00:02:33]} {[%emt 00:00:04]} 45. Kd2 {[%clk 00:01:28]} {[%emt 00:00:31]} Nb8
{[%clk 00:02:12]} {[%emt 00:00:27]} 46. Ke3 {[%clk 00:01:15]} {[%emt 00:00:18]}
Na6 {[%clk 00:01:49]} {[%emt 00:00:28]} 47. Bf4 {[%clk 00:00:58]} {[%emt
00:00:21]} Nb4 {[%clk 00:01:49]} {[%emt 00:00:05]} 48. Bg5 {[%clk 00:00:59]}
{[%emt 00:00:04]} Nd5+ {[%clk 00:01:46]} {[%emt 00:00:09]} 49. Kd2 {[%clk
00:01:03]} Nb4 {[%clk 00:01:47]} {[%emt 00:00:04]} 50. Rh8 {[%clk 00:00:59]}
{[%emt 00:00:07]} Bd7 {[%clk 00:01:50]} {[%emt 00:00:04]} 51. Bd8 {[%clk
00:00:39]} {[%emt 00:00:24]} Nc6 {[%clk 00:01:48]} {[%emt 00:00:07]} 52. Rh7
{[%clk 00:00:33]} {[%emt 00:00:11]} Kc8 {[%clk 00:01:33]} {[%emt 00:00:20]} 53.
Bxb6 {[%clk 00:00:31]} {[%emt 00:00:07]} Nxe5 {[%clk 00:01:37]} {[%emt
00:00:01]} 54. Bxc5 {[%clk 00:00:22]} {[%emt 00:00:14]} Kb7 {[%clk 00:01:29]}
{[%emt 00:00:12]} 55. Bd4 {[%clk 00:00:24]} {[%emt 00:00:03]} Nf3+ {[%clk
00:01:33]} {[%emt 00:00:02]} 56. Ke3 {[%clk 00:00:28]} Nxd4 {[%clk 00:01:33]}
{[%emt 00:00:05]} 57. Kxd4 {[%clk 00:00:31]} {[%emt 00:00:02]} Kc6 {[%clk
00:01:36]} {[%emt 00:00:02]} 58. Ke5 {[%clk 00:00:35]} {[%emt 00:00:01]} Be8
{[%clk 00:01:25]} {[%emt 00:00:16]} 59. Rc7+ {[%clk 00:00:34]} {[%emt
00:00:06]} Kb6 {[%clk 00:01:29]} {[%emt 00:00:01]} 60. Rc3 {[%clk 00:00:38]}
Bd7 {[%clk 00:01:29]} {[%emt 00:00:06]} 61. Kf6 {[%clk 00:00:42]} {[%emt
00:00:01]} Bc6 {[%emt 00:01:30]} 62. Kxe6 {[%emt 00:00:03]} 1-0

[Event "IV Pullman Rapid 2022"]
[Site "Riga, Latvia"]
[Date "2022.02.19"]
[Round "5.3"]
[White "Antoms, Guntars"]
[Black "Golubovskis, Maksims"]
[Result "1/2-1/2"]
[TimeControl "600+5"]
[WhiteTitle "IM"]
[BlackTitle "FM"]
[WhiteElo "2088"]
[BlackElo "2185"]

1. e4 {[%clk 00:10:07]} {[%emt 00:00:02]} c5 {[%clk 00:10:08]} {[%emt
00:00:03]} 2. Nc3 {[%clk 00:10:09]} {[%emt 00:00:03]} d6 {[%clk 00:10:13]} 3.
f4 {[%clk 00:10:10]} {[%emt 00:00:03]} g6 {[%clk 00:10:16]} {[%emt 00:00:02]} 4.
Nf3 {[%clk 00:10:12]} {[%emt 00:00:03]} Bg7 {[%clk 00:10:20]} {[%emt 00:00:01]}
5. d4 {[%clk 00:09:19]} {[%emt 00:00:57]} cxd4 {[%clk 00:10:23]} {[%emt
00:00:02]} 6. Nxd4 {[%clk 00:09:23]} Nc6 {[%clk 00:10:23]} {[%emt 00:00:05]} 7.
Be3 {[%clk 00:09:07]} {[%emt 00:00:21]} Nf6 {[%clk 00:10:18]} {[%emt 00:00:10]}
8. Qd2 {[%clk 00:08:10]} {[%emt 00:01:01]} O-O {[%clk 00:08:25]} {[%emt
00:01:59]} 9. O-O-O {[%clk 00:07:55]} {[%emt 00:00:20]} Bg4 {[%clk 00:06:39]}
{[%emt 00:01:51]} 10. Be2 {[%clk 00:07:45]} {[%emt 00:00:15]} Bxe2 {[%clk
00:05:51]} {[%emt 00:00:54]} 11. Qxe2 {[%clk 00:07:38]} {[%emt 00:00:12]} Qc7
{[%emt 00:00:49]} 12. g4 {[%clk 00:06:50]} {[%emt 00:00:13]} 1/2-1/2

[Event "IV Pullman Rapid 2022"]
[Site "Riga, Latvia"]
[Date "2022.02.19"]
[Round "6.1"]
[White "Shirov, Alexei"]
[Black "Mustaps, Matiss"]
[Result "1-0"]
[TimeControl "600+5"]
[WhiteTitle "GM"]
[BlackTitle "FM"]
[WhiteElo "2614"]
[BlackElo "2393"]

1. e4 {[%clk 00:10:08]} c5 {[%clk 00:10:09]} {[%emt 00:00:03]} 2. Nc3 {[%clk
00:09:56]} {[%emt 00:00:16]} Nc6 {[%clk 00:10:07]} {[%emt 00:00:06]} 3. Nge2
{[%clk 00:09:59]} {[%emt 00:00:02]} Nf6 {[%clk 00:09:40]} {[%emt 00:00:32]} 4.
d4 {[%clk 00:09:57]} {[%emt 00:00:07]} cxd4 {[%clk 00:09:44]} {[%emt 00:00:01]}
5. Nxd4 {[%clk 00:10:01]} {[%emt 00:00:01]} e6 {[%clk 00:09:43]} {[%emt
00:00:07]} 6. Ndb5 {[%clk 00:09:57]} {[%emt 00:00:08]} Bb4 {[%clk 00:09:45]}
{[%emt 00:00:03]} 7. a3 {[%clk 00:09:47]} {[%emt 00:00:16]} Bxc3+ {[%clk
00:09:48]} {[%emt 00:00:02]} 8. Nxc3 {[%clk 00:09:50]} {[%emt 00:00:01]} d5
{[%clk 00:09:52]} 9. Bd3 {[%clk 00:09:12]} {[%emt 00:00:44]} dxe4 {[%clk
00:09:15]} {[%emt 00:00:42]} 10. Nxe4 {[%clk 00:09:15]} {[%emt 00:00:02]} Nxe4
{[%clk 00:09:19]} 11. Bxe4 {[%clk 00:09:19]} {[%emt 00:00:02]} Qxd1+ {[%clk
00:09:22]} {[%emt 00:00:02]} 12. Kxd1 {[%clk 00:09:22]} {[%emt 00:00:02]} Bd7
{[%clk 00:09:19]} {[%emt 00:00:08]} 13. Be3 {[%clk 00:06:45]} {[%emt 00:02:41]}
O-O-O {[%clk 00:08:57]} {[%emt 00:00:28]} 14. Ke2 {[%clk 00:06:44]} {[%emt
00:00:06]} e5 {[%clk 00:06:24]} {[%emt 00:02:39]} 15. Bxc6 {[%clk 00:05:26]}
{[%emt 00:01:23]} Bxc6 {[%clk 00:06:27]} {[%emt 00:00:02]} 16. Bxa7 {[%clk
00:05:29]} {[%emt 00:00:02]} Bxg2 {[%clk 00:06:22]} {[%emt 00:00:10]} 17. Rhg1
{[%clk 00:05:28]} {[%emt 00:00:06]} Be4 {[%clk 00:06:25]} {[%emt 00:00:02]} 18.
Rg4 {[%clk 00:04:43]} {[%emt 00:00:50]} Bf5 {[%clk 00:05:53]} {[%emt 00:00:38]}
19. Rc4+ {[%clk 00:04:38]} {[%emt 00:00:10]} Kd7 {[%clk 00:05:57]} {[%emt
00:00:01]} 20. Rb4 {[%clk 00:04:32]} {[%emt 00:00:10]} Kc6 {[%clk 00:05:34]}
{[%emt 00:00:29]} 21. Rg1 {[%clk 00:04:24]} {[%emt 00:00:12]} g6 {[%clk
00:05:03]} {[%emt 00:00:36]} 22. Rg3 {[%clk 00:04:03]} {[%emt 00:00:25]} Rd7
{[%clk 00:03:56]} {[%emt 00:01:13]} 23. Rc3+ {[%clk 00:03:07]} {[%emt
00:01:01]} Kd6 {[%clk 00:03:20]} {[%emt 00:00:42]} 24. Bc5+ {[%clk 00:03:09]}
{[%emt 00:00:03]} Kd5 {[%clk 00:03:14]} {[%emt 00:00:11]} 25. Rb5 {[%clk
00:03:12]} {[%emt 00:00:01]} Ke6 {[%clk 00:01:36]} {[%emt 00:01:44]} 26. Rb6+
{[%clk 00:03:15]} {[%emt 00:00:02]} Kd5 {[%clk 00:01:40]} 27. Bb4 {[%clk
00:02:21]} {[%emt 00:00:59]} Rhd8 {[%clk 00:00:36]} {[%emt 00:01:09]} 28. Ke3
{[%clk 00:02:15]} {[%emt 00:00:10]} Rd6 {[%clk 00:00:11]} {[%emt 00:00:31]} 29.
Bxd6 {[%clk 00:01:46]} {[%emt 00:00:34]} Rxd6 {[%clk 00:00:15]} {[%emt
00:00:01]} 30. Rxd6+ {[%clk 00:01:44]} {[%emt 00:00:07]} Kxd6 {[%clk 00:00:19]}
{[%emt 00:00:02]} 31. a4 {[%clk 00:01:47]} {[%emt 00:00:02]} Bd7 {[%clk
00:00:20]} {[%emt 00:00:04]} 32. a5 {[%clk 00:01:46]} {[%emt 00:00:06]} f5
{[%clk 00:00:20]} {[%emt 00:00:05]} 33. f4 {[%clk 00:01:46]} {[%emt 00:00:04]}
exf4+ {[%clk 00:00:24]} {[%emt 00:00:02]} 34. Kxf4 {[%clk 00:01:50]} {[%emt
00:00:01]} h6 {[%clk 00:00:25]} {[%emt 00:00:04]} 35. h4 {[%clk 00:01:50]}
{[%emt 00:00:04]} Ke6 {[%clk 00:00:18]} {[%emt 00:00:13]} 36. Rc7 {[%clk
00:01:40]} {[%emt 00:00:14]} 1-0

[Event "IV Pullman Rapid 2022"]
[Site "Riga, Latvia"]
[Date "2022.02.19"]
[Round "6.2"]
[White "Golubovskis, Maksims"]
[Black "Batashevs, Arsens"]
[Result "1/2-1/2"]
[TimeControl "600+5"]
[WhiteTitle "FM"]
[WhiteElo "2185"]
[BlackElo "2105"]

1. c4 {[%clk 00:09:51]} {[%emt 00:00:18]} g6 {[%clk 00:10:08]} {[%emt
00:00:03]} 2. g3 {[%clk 00:09:56]} Bg7 {[%clk 00:10:12]} 3. Bg2 {[%clk
00:10:00]} e5 {[%clk 00:10:16]} {[%emt 00:00:02]} 4. d3 {[%clk 00:10:04]}
{[%emt 00:00:01]} Nc6 {[%clk 00:10:20]} 5. Nf3 {[%clk 00:10:07]} {[%emt
00:00:01]} h5 {[%clk 00:10:24]} {[%emt 00:00:01]} 6. Nc3 {[%clk 00:10:09]}
{[%emt 00:00:03]} d6 {[%clk 00:10:28]} {[%emt 00:00:02]} 7. Rb1 {[%clk
00:09:38]} {[%emt 00:00:36]} Nh6 {[%clk 00:10:24]} {[%emt 00:00:10]} 8. b4
{[%clk 00:09:09]} {[%emt 00:00:34]} Nf5 {[%clk 00:10:07]} {[%emt 00:00:22]} 9.
Bg5 {[%clk 00:08:25]} {[%emt 00:00:49]} f6 {[%clk 00:08:57]} {[%emt 00:01:16]}
10. Bd2 {[%clk 00:08:27]} {[%emt 00:00:02]} h4 {[%clk 00:07:56]} {[%emt
00:01:07]} 11. b5 {[%clk 00:07:04]} {[%emt 00:01:28]} Ncd4 {[%clk 00:07:34]}
{[%emt 00:00:27]} 12. e3 {[%clk 00:05:44]} {[%emt 00:01:25]} Nxf3+ {[%clk
00:07:18]} {[%emt 00:00:20]} 13. Qxf3 {[%clk 00:05:19]} {[%emt 00:00:30]} hxg3
{[%clk 00:04:04]} {[%emt 00:03:20]} 14. hxg3 {[%clk 00:05:20]} {[%emt
00:00:05]} Rxh1+ {[%clk 00:04:07]} {[%emt 00:00:01]} 15. Bxh1 {[%clk 00:05:23]}
{[%emt 00:00:01]} Rb8 {[%clk 00:03:53]} {[%emt 00:00:21]} 16. Qg4 {[%clk
00:04:45]} {[%emt 00:00:42]} Ne7 {[%clk 00:03:40]} {[%emt 00:00:17]} 17. Qh4
{[%clk 00:04:50]} {[%emt 00:00:01]} Kf7 {[%clk 00:03:12]} {[%emt 00:00:33]} 18.
Kd1 {[%clk 00:02:28]} {[%emt 00:02:27]} Be6 {[%clk 00:03:11]} {[%emt 00:00:06]}
19. Kc2 {[%clk 00:02:04]} {[%emt 00:00:29]} d5 {[%clk 00:01:54]} {[%emt
00:01:22]} 20. cxd5 {[%clk 00:01:31]} {[%emt 00:00:38]} Nxd5 {[%clk 00:01:58]}
{[%emt 00:00:01]} 21. Nxd5 {[%clk 00:01:06]} {[%emt 00:00:30]} Bxd5 {[%clk
00:02:02]} {[%emt 00:00:01]} 22. Bxd5+ {[%clk 00:01:11]} Qxd5 {[%clk 00:02:06]}
23. Qc4 {[%clk 00:01:14]} Qxc4+ {[%clk 00:02:09]} {[%emt 00:00:02]} 24. dxc4
{[%clk 00:01:18]} Rh8 {[%clk 00:01:41]} {[%emt 00:00:33]} 25. e4 {[%clk
00:01:01]} {[%emt 00:00:23]} Rh2 {[%clk 00:00:39]} {[%emt 00:01:06]} 26. Be3
{[%clk 00:01:05]} b6 {[%clk 00:00:37]} {[%emt 00:00:08]} 27. c5 {[%clk
00:00:25]} {[%emt 00:00:44]} Bf8 {[%clk 00:00:14]} {[%emt 00:00:28]} 28. Rd1
{[%clk 00:00:18]} {[%emt 00:00:12]} Ke6 {[%clk 00:00:07]} {[%emt 00:00:13]} 29.
Rd8 {[%clk 00:00:07]} {[%emt 00:00:16]} Bxc5 {[%clk 00:00:10]} {[%emt
00:00:02]} 30. Bxc5 {[%clk 00:00:11]} bxc5 {[%clk 00:00:14]} 31. Rd2 {[%clk
00:00:11]} {[%emt 00:00:05]} Rh7 {[%clk 00:00:11]} {[%emt 00:00:08]} 32. Kc3
{[%clk 00:00:15]} Rd7 {[%clk 00:00:10]} {[%emt 00:00:06]} 33. Rxd7 {[%clk
00:00:13]} {[%emt 00:00:08]} Kxd7 {[%clk 00:00:15]} {[%emt 00:00:01]} 34. Kc4
{[%clk 00:00:16]} {[%emt 00:00:01]} Kd6 {[%clk 00:00:19]} 35. g4 {[%clk
00:00:18]} {[%emt 00:00:03]} g5 {[%clk 00:00:07]} {[%emt 00:00:17]} 36. f3
{[%clk 00:00:18]} {[%emt 00:00:05]} c6 {[%clk 00:00:07]} {[%emt 00:00:05]} 37.
a4 {[%clk 00:00:12]} {[%emt 00:00:11]} cxb5+ {[%clk 00:00:08]} {[%emt
00:00:05]} 38. axb5 {[%clk 00:00:09]} {[%emt 00:00:07]} Kd7 {[%clk 00:00:08]}
{[%emt 00:00:04]} 39. Kxc5 {[%clk 00:00:09]} {[%emt 00:00:05]} Kc7 {[%clk
00:00:13]} 40. Kd5 {[%clk 00:00:08]} {[%emt 00:00:05]} Kb6 {[%clk 00:00:18]}
{[%emt 00:00:01]} 41. Kc4 {[%clk 00:00:09]} {[%emt 00:00:04]} Kb7 {[%clk
00:00:22]} {[%emt 00:00:01]} 42. Kd5 {[%clk 00:00:11]} {[%emt 00:00:03]} Kb6
{[%clk 00:00:26]} 43. Kc4 {[%clk 00:00:15]} Kb7 {[%clk 00:00:30]} 44. Kd5
{[%clk 00:00:16]} {[%emt 00:00:04]} Kb6 {[%clk 00:00:35]} 1/2-1/2

[Event "IV Pullman Rapid 2022"]
[Site "Riga, Latvia"]
[Date "2022.02.19"]
[Round "6.4"]
[White "Laimins, Lauris"]
[Black "Bazilius, Augustinas"]
[Result "1/2-1/2"]
[TimeControl "600+5"]
[WhiteElo "2147"]
[BlackElo "1931"]

1. d4 {[%emt 00:01:34]} Nf6 {[%emt 00:00:03]} 2. c4 {[%emt 00:00:02]} g6 {[%emt
00:00:02]} 3. Nc3 {[%emt 00:00:03]} d5 {[%emt 00:00:02]} 4. e3 {[%clk
00:10:12]} {[%emt 00:00:06]} Bg7 {[%clk 00:10:18]} {[%emt 00:00:02]} 5. Nf3
{[%clk 00:10:14]} {[%emt 00:00:02]} O-O {[%clk 00:10:21]} {[%emt 00:00:02]} 6.
Bd3 {[%clk 00:10:17]} {[%emt 00:00:02]} c5 {[%clk 00:10:14]} {[%emt 00:00:12]}
7. O-O {[%clk 00:10:18]} {[%emt 00:00:04]} dxc4 {[%clk 00:09:38]} {[%emt
00:00:41]} 8. Bxc4 {[%clk 00:10:21]} Nc6 {[%emt 00:00:02]} 9. dxc5 {[%emt
00:00:13]} Nd7 {[%clk 00:08:14]} {[%emt 00:01:33]} 10. Qe2 {[%clk 00:10:09]}
{[%emt 00:00:09]} Nxc5 {[%clk 00:08:05]} {[%emt 00:00:14]} 11. Rd1 {[%clk
00:10:12]} {[%emt 00:00:01]} Qc7 {[%clk 00:06:53]} {[%emt 00:01:19]} 12. e4
{[%clk 00:09:42]} {[%emt 00:00:35]} Bg4 {[%clk 00:06:43]} {[%emt 00:00:14]} 13.
Nd5 {[%clk 00:09:32]} {[%emt 00:00:14]} Qb8 {[%clk 00:05:36]} {[%emt 00:01:13]}
14. Bf4 {[%clk 00:09:33]} {[%emt 00:00:04]} Qc8 {[%clk 00:05:18]} {[%emt
00:00:23]} 15. Rac1 {[%clk 00:08:09]} {[%emt 00:01:29]} e6 {[%clk 00:03:29]}
{[%emt 00:01:54]} 16. Nc3 {[%clk 00:07:59]} {[%emt 00:00:14]} e5 {[%clk
00:02:32]} {[%emt 00:01:02]} 17. Be3 {[%clk 00:07:50]} {[%emt 00:00:13]} Ne6
{[%clk 00:02:28]} {[%emt 00:00:10]} 18. Bxe6 {[%clk 00:07:30]} {[%emt
00:00:25]} Qxe6 {[%clk 00:02:09]} {[%emt 00:00:24]} 19. Nd5 {[%clk 00:07:30]}
{[%emt 00:00:05]} Rac8 {[%clk 00:02:10]} {[%emt 00:00:04]} 20. h3 {[%clk
00:07:28]} {[%emt 00:00:07]} Bxf3 {[%clk 00:02:11]} {[%emt 00:00:05]} 21. Qxf3
{[%clk 00:07:31]} {[%emt 00:00:02]} Nd4 {[%clk 00:02:09]} {[%emt 00:00:06]} 22.
Bxd4 {[%clk 00:07:16]} {[%emt 00:00:19]} exd4 {[%clk 00:02:13]} {[%emt
00:00:01]} 23. Qg4 {[%clk 00:07:04]} {[%emt 00:00:14]} f5 {[%clk 00:01:22]}
{[%emt 00:00:59]} 24. exf5 {[%clk 00:06:34]} {[%emt 00:00:35]} Qxd5 {[%clk
00:01:22]} {[%emt 00:00:06]} 25. Rxc8 {[%clk 00:06:38]} {[%emt 00:00:01]} Rxc8
{[%emt 00:00:07]} 26. f6 Rd8 {[%clk 00:01:10]} {[%emt 00:00:15]} 27. fxg7
{[%clk 00:06:46]} {[%emt 00:00:02]} Kxg7 {[%clk 00:01:14]} {[%emt 00:00:01]} 28.
Rd3 {[%clk 00:06:30]} {[%emt 00:00:21]} 1/2-1/2

[Event "IV Pullman Rapid 2022"]
[Site "Riga, Latvia"]
[Date "2022.02.19"]
[Round "7.1"]
[White "Batashevs, Arsens"]
[Black "Shirov, Alexei"]
[Result "0-1"]
[TimeControl "600+5"]
[BlackTitle "GM"]
[WhiteElo "2105"]
[BlackElo "2614"]

1. Nf3 {[%clk 00:10:06]} {[%emt 00:00:03]} d5 {[%clk 00:10:09]} {[%emt
00:00:01]} 2. e3 {[%clk 00:10:09]} {[%emt 00:00:03]} Nf6 {[%clk 00:09:58]}
{[%emt 00:00:15]} 3. b3 {[%clk 00:10:12]} {[%emt 00:00:02]} Bg4 {[%clk
00:09:52]} {[%emt 00:00:11]} 4. Bb2 {[%clk 00:10:15]} {[%emt 00:00:03]} Nbd7
{[%clk 00:09:55]} {[%emt 00:00:01]} 5. d4 {[%clk 00:10:18]} {[%emt 00:00:02]}
e6 {[%clk 00:08:44]} {[%emt 00:01:16]} 6. Bd3 {[%clk 00:10:19]} {[%emt
00:00:04]} Bd6 {[%clk 00:08:26]} {[%emt 00:00:23]} 7. c4 {[%clk 00:10:12]}
{[%emt 00:00:13]} c6 {[%clk 00:06:52]} {[%emt 00:01:38]} 8. Nc3 {[%clk
00:10:07]} {[%emt 00:00:10]} O-O {[%clk 00:06:48]} {[%emt 00:00:09]} 9. O-O
{[%clk 00:09:39]} {[%emt 00:00:33]} Qe7 {[%clk 00:06:23]} {[%emt 00:00:30]} 10.
Qc2 {[%clk 00:07:14]} {[%emt 00:02:30]} Bxf3 {[%clk 00:04:19]} {[%emt
00:02:09]} 11. gxf3 {[%clk 00:07:18]} {[%emt 00:00:01]} e5 {[%clk 00:04:22]}
{[%emt 00:00:02]} 12. dxe5 {[%clk 00:06:59]} {[%emt 00:00:24]} Qxe5 {[%clk
00:04:13]} {[%emt 00:00:14]} 13. f4 {[%clk 00:07:03]} {[%emt 00:00:01]} Qh5
{[%clk 00:04:17]} {[%emt 00:00:01]} 14. Qe2 {[%clk 00:04:19]} {[%emt 00:02:50]}
Ng4 {[%clk 00:04:12]} {[%emt 00:00:09]} 15. f3 {[%clk 00:04:22]} {[%emt
00:00:02]} Nxe3 {[%clk 00:04:13]} {[%emt 00:00:04]} 16. Qxe3 {[%clk 00:03:57]}
{[%emt 00:00:30]} Bc5 {[%clk 00:04:17]} {[%emt 00:00:01]} 17. Nd1 {[%clk
00:03:07]} {[%emt 00:00:55]} Bxe3+ {[%clk 00:04:05]} {[%emt 00:00:17]} 18. Nxe3
{[%clk 00:03:10]} {[%emt 00:00:01]} Nc5 {[%clk 00:03:43]} {[%emt 00:00:27]} 19.
Bc2 {[%clk 00:02:53]} {[%emt 00:00:22]} Rfe8 {[%clk 00:03:13]} {[%emt
00:00:34]} 20. Rae1 {[%clk 00:02:46]} {[%emt 00:00:13]} Ne6 {[%clk 00:03:11]}
{[%emt 00:00:08]} 21. Ng2 {[%clk 00:02:22]} {[%emt 00:00:28]} dxc4 {[%clk
00:03:07]} {[%emt 00:00:09]} 0-1